fUST/lending_fUST_20250926
["ID","MTS","AMOUNT","RATE_DAILY","PERIOD"]
[387769883,1758841851947,-745.13,0.00022088,2]
[387769885,1758841851956,-480.0,0.0002209,2]
[387769887,1758841851967,-480.0,0.0002209,2]
[387769889,1758841851977,-480.0,0.0002209,2]
[387769891,1758841851987,-480.0,0.0002209,2]
[387769893,1758841851998,-582.53,0.000221,2]
[387769895,1758841852008,-500.0,0.00022164,2]
[387769897,1758841852017,-173.981,0.00022197,2]
[387769899,1758841852027,-260.0,0.00022273,2]
[387769901,1758841852037,-480.0,0.0002236,2]
[387769903,1758841852050,-562.24,0.0002236,2]
[387769905,1758841852064,-480.0,0.0002236,2]
[387769907,1758841852075,-480.0,0.0002236,2]
[387769909,1758841852086,-480.0,0.0002236,2]
[387769911,1758841852097,-480.0,0.00022362,2]
[387769913,1758841852109,-480.0,0.00022362,2]
[387769916,1758841852125,-2801.14,0.00022362,2]
[387769918,1758841852143,-480.0,0.00022362,2]
[387769921,1758841852163,-480.0,0.00022362,2]
[387769923,1758841852177,-490.1,0.00022362,2]
[387769924,1758841852194,-745.13,0.00022362,2]
[387769925,1758841852212,-480.0,0.00022364,2]
[387769926,1758841852229,-602.71,0.00022364,2]
[387769927,1758841852245,-480.0,0.00022364,2]
[387769928,1758841852265,-480.0,0.00022364,2]
[387769929,1758841852281,-480.0,0.00022634,2]
[387769930,1758841852295,-562.24,0.00022634,2]
[387769931,1758841852316,-480.0,0.00022634,2]
[387769932,1758841852331,-157.32,0.00022634,2]
[387769933,1758841852346,-344.56,0.00022634,2]
[387769934,1758841852362,-480.0,0.00022636,2]
[387769935,1758841852376,-424.27,0.00022636,2]
[387769936,1758841852389,-2801.14,0.00022636,2]
[387769937,1758841852402,-480.0,0.00022636,2]
[387769938,1758841852417,-480.0,0.00022636,2]
[387769940,1758841852432,-490.1,0.00022636,2]
[387769942,1758841852446,-745.13,0.00022636,2]
[387769944,1758841852461,-480.0,0.00022638,2]
[387769947,1758841852475,-480.0,0.00022638,2]
[387769949,1758841852489,-480.0,0.00022638,2]
[387769951,1758841852500,-480.0,0.00022908,2]
[387769954,1758841852513,-562.24,0.00022908,2]
[387769956,1758841852526,-480.0,0.00022908,2]
[387769959,1758841852542,-480.0,0.0002291,2]
[387769961,1758841852557,-2801.14,0.0002291,2]
[387769963,1758841852569,-480.0,0.0002291,2]
[387769965,1758841852581,-480.0,0.0002291,2]
[387769968,1758841852595,-490.1,0.0002291,2]
[387769970,1758841852605,-745.13,0.0002291,2]
[387769972,1758841852616,-480.0,0.00022912,2]
[387769974,1758841852631,-480.0,0.00022912,2]
[387769976,1758841852644,-480.0,0.00022912,2]
[387769979,1758841852657,-160.0,0.00023,2]
[387769981,1758841852670,-1831.70615635,0.00023116,2]
[387769983,1758841852683,-480.0,0.00023182,2]
[387769985,1758841852694,-562.24,0.00023182,2]
[387769988,1758841852706,-480.0,0.00023182,2]
[387769990,1758841852718,-480.0,0.00023184,2]
[387769992,1758841852730,-2801.14,0.00023184,2]
[387769994,1758841852741,-480.0,0.00023184,2]
[387769996,1758841852753,-480.0,0.00023184,2]
[387769999,1758841852765,-490.1,0.00023184,2]
[387770001,1758841852776,-745.13,0.00023184,2]
[387770003,1758841852787,-480.0,0.00023186,2]
[387770005,1758841852799,-480.0,0.00023186,2]
[387770008,1758841852814,-480.0,0.00023186,2]
[387770010,1758841852826,-500.0,0.00023223,2]
[387770012,1758841852838,-500.0,0.00023303,2]
[387770014,1758841852850,-480.0,0.00023456,2]
[387770017,1758841852861,-562.24,0.00023456,2]
[387770019,1758841852873,-577.68,0.00023456,2]
[387770021,1758841852886,-480.0,0.00023458,2]
[387770024,1758841852897,-2801.14,0.00023458,2]
[387770026,1758841852909,-480.0,0.00023458,2]
[387770028,1758841852921,-480.0,0.00023458,2]
[387770030,1758841852933,-490.1,0.00023458,2]
[387770033,1758841852944,-745.13,0.00023458,2]
[387770035,1758841852956,-480.0,0.0002346,2]
[387770037,1758841852969,-480.0,0.0002346,2]
[387770039,1758841852980,-480.0,0.0002346,2]
[387770042,1758841852992,-500.0,0.0002352,2]
[387770044,1758841853004,-500.0,0.0002352,2]
[387770046,1758841853016,-500.0,0.00023562,2]
[387770048,1758841853028,-500.0,0.00023562,2]
[387770051,1758841853040,-500.0,0.00023562,2]
[387770053,1758841853052,-500.0,0.00023562,2]
[387770055,1758841853065,-549.60212902,0.00023606,2]
[387770068,1758841853171,-549.60212902,0.00023606,2]
[387770070,1758841853187,-549.60212902,0.00023606,2]
[387770072,1758841853197,-480.0,0.0002373,2]
[387770074,1758841853207,-562.24,0.0002373,2]
[387770076,1758841853217,-480.0,0.00023732,2]
[387770078,1758841853226,-2801.14,0.00023732,2]
[387770080,1758841853236,-443.94,0.00023732,2]
[387770082,1758841853246,-480.0,0.00023732,2]
[387770084,1758841853255,-490.1,0.00023732,2]
[387770086,1758841853265,-745.13,0.00023732,2]
[387770088,1758841853274,-480.0,0.00023734,2]
[387770090,1758841853285,-480.0,0.00023734,2]
[387770092,1758841853294,-624.0,0.00023734,2]
[387770094,1758841853305,-549.60212902,0.00023748,2]
[387770096,1758841853314,-549.60212902,0.00023748,2]
[387770098,1758841853323,-500.0,0.000238,2]
[387770100,1758841853333,-500.0,0.000238,2]
[387770102,1758841853343,-500.0,0.00023874,2]
[387770104,1758841853352,-500.0,0.00023876,2]
[387770106,1758841853361,-150.0,0.000239,2]
[387770108,1758841853370,-480.0,0.00024004,2]
[387770110,1758841853379,-562.24,0.00024004,2]
[387770112,1758841853389,-480.0,0.00024006,2]
[387770114,1758841853398,-2801.14,0.00024006,2]
[387770116,1758841853408,-480.0,0.00024006,2]
[387770118,1758841853417,-490.1,0.00024006,2]
[387770120,1758841853426,-745.13,0.00024006,2]
[387770122,1758841853435,-480.0,0.00024008,2]
[387770124,1758841853445,-500.0,0.0002402,2]
[387770126,1758841853454,-549.60212902,0.00024032,7]
[387770128,1758841853463,-549.60212902,0.00024032,7]
[387770130,1758841853474,-549.60212902,0.00024032,7]
[387770132,1758841853483,-505.8389514,0.00024068,2]
[387770134,1758841853493,-500.0,0.00024068,2]
[387770136,1758841853502,-1000.0,0.00024109,2]
[387770138,1758841853511,-1000.0,0.00024109,2]
[387770140,1758841853521,-257.36639487,0.00024109,2]
[387770141,1758841853532,-549.60212902,0.00024174,7]
[387770144,1758841853542,-549.60212902,0.00024174,7]
[387770145,1758841853551,-549.60212902,0.00024174,7]
[387770147,1758841853562,-549.60212902,0.00024174,7]
[387770150,1758841853572,-1831.70615635,0.00024187,2]
[387770151,1758841853581,-480.0,0.00024278,2]
[387770153,1758841853590,-562.24,0.00024278,2]
[387770155,1758841853599,-501.84,0.0002428,2]
[387770157,1758841853609,-2801.14,0.0002428,2]
[387770159,1758841853618,-349.02,0.0002428,2]
[387770162,1758841853630,-490.1,0.0002428,2]
[387770164,1758841853641,-745.13,0.0002428,2]
[387770166,1758841853650,-480.0,0.00024282,2]
[387770167,1758841853660,-549.60212902,0.00024316,7]
[387770169,1758841853671,-1000.0,0.00024348,2]
[387770171,1758841853680,-1608.34719036,0.0002442,2]
[387770173,1758841853689,-549.60212902,0.00024458,14]
[387770175,1758841853699,-353.77,0.00024552,2]
[387770177,1758841853709,-562.24,0.00024552,2]
[387770179,1758841853719,-2801.14,0.00024554,2]
[387770181,1758841853728,-490.1,0.00024554,2]
[387770183,1758841853738,-745.13,0.00024554,2]
[387770185,1758841853747,-384.0,0.00024556,2]
[387770188,1758841853757,-549.60212902,0.000246,14]
[387770189,1758841853766,-524.796,0.00024626,7]
[387770191,1758841853776,-1500.0,0.00024657,2]
[387770193,1758841853785,-1019.25989304,0.00024657,2]
[387770196,1758841853795,-597.62053348,0.00024773,2]
[387770197,1758841853806,-500.0,0.00024773,2]
[387770200,1758841853817,-978.0,0.00024791,2]
[387770202,1758841853826,-635.0,0.00024791,2]
[387770204,1758841853836,-2160.0,0.00024791,2]
[387770206,1758841853845,-562.24,0.00024826,2]
[387770208,1758841853855,-2801.14,0.00024828,2]
[387770210,1758841853864,-490.1,0.00024828,2]
[387770212,1758841853873,-745.13,0.00024828,2]
[387770214,1758841853883,-500.0,0.00024896,2]
[387770215,1758841853892,-479095.04442844,0.000249,2]
[387770226,1758841853982,-13481.37530456,0.000249,2]
[387770228,1758841853992,-151.0,0.000249,7]
[387770230,1758841854001,-141.32619913,0.000251,2]
[387770236,1758841854047,-480.0,0.00019345,2]
[387770238,1758841854058,-677.26268837,0.0002017,2]
[387770240,1758841854071,-177.05731163,0.0002017,2]
[387770242,1758841854081,-854.32,0.00020444,2]
[387770244,1758841854090,-345.94917541,0.000251,2]
[387770252,1758841854160,-500.0,0.0001935,2]
[387770254,1758841854170,-480.0,0.00019619,2]
[387770256,1758841854180,-500.0,0.00019624,2]
[387770258,1758841854190,-480.0,0.00019893,2]
[387770260,1758841854199,-59.54910721,0.00019898,2]
[387770289,1758841854467,2198.99,0.00021256,10]
[387772230,1758842642584,160.0,0.00021,6]
[387772242,1758842785295,-151.0,0.00019331,2]
[387772243,1758842785321,-903.0,0.0001934,2]
[387772244,1758842785346,-634.0,0.0001934,2]
[387772245,1758842785373,-500.0,0.00019341,2]
[387772246,1758842785397,-500.0,0.00019341,2]
[387772247,1758842785424,-500.0,0.00019341,2]
[387772248,1758842785448,-500.0,0.00019341,2]
[387772249,1758842785474,-500.0,0.00019341,2]
[387772250,1758842785499,-316.97046028,0.00019341,2]
[387772251,1758842785524,-544.7381867,0.00019341,2]
[387772252,1758842785549,-296.78617496,0.00019341,2]
[387772253,1758842785577,-500.0,0.00019341,2]
[387772254,1758842785601,-515.24395365,0.00019341,2]
[387772255,1758842785631,-500.0,0.00019341,2]
[387772256,1758842785658,-500.0,0.00019341,2]
[387772257,1758842785684,-362.10775351,0.00019341,2]
[387772258,1758842785710,-500.0,0.00019341,2]
[387772259,1758842785735,-480.0,0.00019341,2]
[387772260,1758842785760,-264.8659026,0.00019341,2]
[387772261,1758842785784,-231.2875683,0.00019341,2]
[387772285,1758842926482,3894.22,0.0001908,2]
[387772286,1758842926507,10000.01,0.0001908,2]
[387772287,1758842926531,10000.01,0.0001908,2]
[387772288,1758842926555,1799.92957868,0.0001908,2]
[387772325,1758843032204,-575.69819772,0.00019245,2]
[387772327,1758843032214,-469.85180228,0.00019251,2]
[387772329,1758843032225,-66.26392784,0.00019251,2]
[387772331,1758843032234,-318.01197261,0.0001934,2]
[387772333,1758843032244,-480.0,0.0001934,2]
[387772335,1758843032254,-480.0,0.0001934,2]
[387772337,1758843032263,-480.0,0.0001934,2]
[387772340,1758843032273,-480.0,0.0001934,2]
[387772341,1758843032282,-480.0,0.0001934,2]
[387772343,1758843032291,-465.33916274,0.0001934,2]
[387772345,1758843032300,-480.0,0.0001934,2]
[387772347,1758843032310,-480.0,0.0001934,2]
[387772349,1758843032319,-480.0,0.0001934,2]
[387772352,1758843032328,-480.0,0.0001934,2]
[387772354,1758843032337,-480.0,0.0001934,2]
[387772355,1758843032348,-480.0,0.0001934,2]
[387772358,1758843032357,-480.0,0.0001934,2]
[387772359,1758843032366,-480.0,0.0001934,2]
[387772361,1758843032376,-480.0,0.0001934,2]
[387772364,1758843032385,-480.0,0.0001934,2]
[387772366,1758843032395,-480.0,0.0001934,2]
[387772367,1758843032404,-480.0,0.0001934,2]
[387772369,1758843032413,-480.0,0.0001934,2]
[387772372,1758843032423,-480.0,0.0001934,2]
[387772373,1758843032432,-480.0,0.0001934,2]
[387772375,1758843032442,-480.0,0.0001934,2]
[387772376,1758843032452,-480.0,0.0001934,2]
[387772378,1758843032461,-480.0,0.0001934,2]
[387772379,1758843032471,-480.0,0.0001934,2]
[387772380,1758843032480,-480.0,0.0001934,2]
[387772381,1758843032489,-480.0,0.0001934,2]
[387772382,1758843032499,-480.0,0.0001934,2]
[387772383,1758843032508,-327.14920667,0.0001934,2]
[387772410,1758843037995,-152.85079333,0.0001934,2]
[387772412,1758843038006,-480.0,0.0001934,2]
[387772414,1758843038015,-474.00229638,0.0001934,2]
[387772416,1758843038024,-480.0,0.0001934,2]
[387772418,1758843038034,-480.0,0.0001934,2]
[387772420,1758843038043,-480.0,0.0001934,2]
[387772422,1758843038053,-480.0,0.0001934,2]
[387772424,1758843038062,-480.0,0.0001934,2]
[387772426,1758843038071,-480.0,0.0001934,2]
[387772428,1758843038081,-480.0,0.0001934,2]
[387772430,1758843038091,-480.0,0.0001934,2]
[387772432,1758843038100,-480.0,0.0001934,2]
[387772434,1758843038109,-480.0,0.0001934,2]
[387772436,1758843038118,-480.0,0.0001934,2]
[387772438,1758843038128,-480.0,0.0001934,2]
[387772440,1758843038137,-248.7124317,0.00019341,2]
[387772442,1758843038147,-480.0,0.00019341,2]
[387772444,1758843038156,-480.0,0.00019341,2]
[387772446,1758843038165,-500.0,0.00019341,2]
[387772448,1758843038174,-500.0,0.00019341,2]
[387772450,1758843038184,-500.0,0.00019341,2]
[387772452,1758843038194,-212.36368667,0.00019341,2]
[387772454,1758843038203,-500.0,0.00019341,2]
[387772456,1758843038212,-500.0,0.00019341,2]
[387772458,1758843038221,-500.0,0.00019341,2]
[387772460,1758843038230,-480.0,0.00019341,2]
[387772463,1758843038241,-480.0,0.00019341,2]
[387772464,1758843038250,-480.0,0.00019341,2]
[387772466,1758843038260,-480.0,0.00019341,2]
[387772469,1758843038269,-480.0,0.00019341,2]
[387772471,1758843038279,-480.0,0.00019341,2]
[387772473,1758843038288,-480.0,0.00019341,2]
[387772475,1758843038298,-480.82978752,0.00019341,2]
[387772477,1758843038307,-480.0,0.00019341,2]
[387772478,1758843038315,-480.0,0.00019341,2]
[387772480,1758843038325,-480.0,0.00019341,2]
[387772482,1758843038334,-480.0,0.00019341,2]
[387772484,1758843038343,-480.0,0.00019341,2]
[387772486,1758843038353,-461.77366144,0.00019341,2]
[387772489,1758843038362,-480.0,0.00019341,2]
[387772491,1758843038372,-480.0,0.00019341,2]
[387772493,1758843038381,-480.0,0.00019341,2]
[387772495,1758843038389,-480.0,0.00019341,2]
[387772496,1758843038398,-480.0,0.00019341,2]
[387772497,1758843038407,-215.81569653,0.00019341,2]
[387772498,1758843038416,-480.0,0.00019341,2]
[387772499,1758843038425,-1163.02,0.00019341,2]
[387772500,1758843038434,-1163.02,0.00019341,2]
[387772501,1758843038444,-480.0,0.00019341,2]
[387772502,1758843038453,-480.0,0.00019341,2]
[387772503,1758843038463,-480.0,0.00019341,2]
[387772504,1758843038473,-480.54108448,0.00019341,2]
[387772505,1758843038482,-480.0,0.00019341,2]
[387772506,1758843038492,-480.0,0.00019341,2]
[387772507,1758843038501,-480.0,0.00019341,2]
[387772508,1758843038511,-480.0,0.00019341,2]
[387772509,1758843038521,-480.0,0.00019341,2]
[387772510,1758843038530,-480.0,0.00019341,2]
[387772511,1758843038540,-480.0,0.00019341,2]
[387772512,1758843038549,-480.0,0.00019341,2]
[387772514,1758843038559,-480.0,0.00019341,2]
[387772515,1758843038568,-480.0,0.00019341,2]
[387772517,1758843038578,-480.0,0.00019341,2]
[387772519,1758843038588,-480.0,0.00019341,2]
[387772521,1758843038598,-738.28,0.00019341,2]
[387772523,1758843038610,-480.0,0.00019341,2]
[387772525,1758843038619,-480.0,0.00019341,2]
[387772527,1758843038629,-480.0,0.00019341,2]
[387772529,1758843038638,-480.0,0.00019341,2]
[387772531,1758843038648,-480.0,0.00019341,2]
[387772533,1758843038657,-480.0,0.00019341,2]
[387772535,1758843038667,-480.0,0.00019341,2]
[387772538,1758843038676,-480.0,0.00019341,2]
[387772540,1758843038686,-480.0,0.00019341,2]
[387772541,1758843038695,-480.0,0.00019341,2]
[387772543,1758843038704,-480.0,0.00019341,2]
[387772545,1758843038714,-480.0,0.00019341,2]
[387772548,1758843038728,-480.0,0.00019341,2]
[387772550,1758843038738,-480.0,0.00019341,2]
[387772552,1758843038747,-480.0,0.00019341,2]
[387772554,1758843038757,-480.0,0.00019341,2]
[387772556,1758843038766,-480.0,0.00019341,2]
[387772558,1758843038776,-480.0,0.00019341,2]
[387772559,1758843038793,-860.95,0.00019341,2]
[387772561,1758843038802,-480.0,0.00019342,2]
[387772563,1758843038811,-486.14535936,0.00019342,2]
[387772565,1758843038820,-480.0,0.00019342,2]
[387772567,1758843038831,-480.0,0.00019342,2]
[387772569,1758843038840,-480.0,0.00019342,2]
[387772571,1758843038849,-480.0,0.00019342,2]
[387772573,1758843038858,-480.0,0.00019342,2]
[387772575,1758843038868,-480.0,0.00019342,2]
[387772577,1758843038877,-480.0,0.00019342,2]
[387772579,1758843038886,-480.0,0.00019342,2]
[387772581,1758843038895,-480.0,0.00019342,2]
[387772583,1758843038904,-480.0,0.00019342,2]
[387772585,1758843038916,-480.0,0.00019342,2]
[387772587,1758843038926,-480.0,0.00019342,2]
[387772589,1758843038935,-480.0,0.00019342,2]
[387772591,1758843038944,-488.50562135,0.00019342,2]
[387772593,1758843038955,-480.0,0.00019342,2]
[387772595,1758843038964,-480.0,0.00019342,2]
[387772597,1758843038973,-480.0,0.00019342,2]
[387772599,1758843038982,-480.0,0.00019342,2]
[387772601,1758843038993,-480.0,0.00019342,2]
[387772603,1758843039003,-480.0,0.00019342,2]
[387772605,1758843039013,-483.11570259,0.00019342,2]
[387772607,1758843039023,-500.0,0.00019342,2]
[387772609,1758843039032,-500.0,0.00019342,2]
[387772611,1758843039042,-500.0,0.00019342,2]
[387772613,1758843039051,-480.0,0.00019342,2]
[387772615,1758843039060,-480.0,0.00019342,2]
[387772617,1758843039069,-480.0,0.00019342,2]
[387772619,1758843039080,-480.0,0.00019342,2]
[387772621,1758843039089,-480.0,0.00019342,2]
[387772623,1758843039098,-480.0,0.00019342,2]
[387772625,1758843039108,-480.0,0.00019342,2]
[387772627,1758843039117,-480.0,0.00019342,2]
[387772629,1758843039126,-480.0,0.00019342,2]
[387772630,1758843039135,-480.0,0.00019342,2]
[387772632,1758843039144,-480.0,0.00019342,2]
[387772634,1758843039154,-480.0,0.00019342,2]
[387772636,1758843039163,-480.0,0.00019342,2]
[387772638,1758843039173,-480.0,0.00019342,2]
[387772640,1758843039183,-480.0,0.00019342,2]
[387772642,1758843039192,-480.0,0.00019342,2]
[387772644,1758843039201,-480.0,0.00019342,2]
[387772647,1758843039211,-480.0,0.00019342,2]
[387772649,1758843039220,-480.0,0.00019342,2]
[387772651,1758843039230,-480.0,0.00019342,2]
[387772653,1758843039239,-480.0,0.00019342,2]
[387772655,1758843039249,-480.0,0.00019342,2]
[387772656,1758843039260,-480.0,0.00019342,2]
[387772658,1758843039270,-480.0,0.00019342,2]
[387772660,1758843039279,-480.0,0.00019342,2]
[387772662,1758843039289,-480.0,0.00019342,2]
[387772664,1758843039299,-480.0,0.00019342,2]
[387772666,1758843039309,-480.0,0.00019342,2]
[387772669,1758843039319,-480.0,0.00019342,2]
[387772670,1758843039328,-480.0,0.00019342,2]
[387772673,1758843039338,-471.48876691,0.00019342,2]
[387772675,1758843039348,-483.41443866,0.00019342,2]
[387772676,1758843039358,-480.0,0.00019342,2]
[387772678,1758843039368,-480.0,0.00019342,2]
[387772681,1758843039378,-480.0,0.00019342,2]
[387772683,1758843039387,-480.0,0.00019342,2]
[387772685,1758843039397,-480.0,0.00019342,2]
[387772687,1758843039406,-480.0,0.00019342,2]
[387772689,1758843039416,-480.0,0.00019342,2]
[387772691,1758843039426,-480.0,0.00019342,2]
[387772693,1758843039436,-480.0,0.00019342,2]
[387772697,1758843039446,-480.0,0.00019342,2]
[387772698,1758843039456,-480.0,0.00019342,2]
[387772701,1758843039465,-480.0,0.00019342,2]
[387772703,1758843039475,-480.0,0.00019342,2]
[387772705,1758843039484,-480.59246332,0.00019342,2]
[387772707,1758843039494,-480.0,0.00019342,2]
[387772709,1758843039503,-484.16692607,0.00019342,2]
[387772711,1758843039513,-480.0,0.00019342,2]
[387772713,1758843039522,-480.0,0.00019342,2]
[387772727,1758843039609,-480.0,0.00019342,2]
[387772729,1758843039620,-480.0,0.00019342,2]
[387772731,1758843039630,-480.0,0.00019342,2]
[387772733,1758843039640,-480.0,0.00019342,2]
[387772735,1758843039649,-480.0,0.00019342,2]
[387772737,1758843039659,-480.0,0.00019342,2]
[387772739,1758843039669,-480.0,0.00019342,2]
[387772741,1758843039678,-482.56057162,0.00019342,2]
[387772743,1758843039688,-480.0,0.00019342,2]
[387772745,1758843039698,-480.0,0.00019342,2]
[387772747,1758843039707,-480.0,0.00019342,2]
[387772749,1758843039717,-480.0,0.00019342,2]
[387772752,1758843039727,-480.0,0.00019342,2]
[387772754,1758843039736,-480.0,0.00019342,2]
[387772756,1758843039745,-480.0,0.00019342,2]
[387772758,1758843039755,-480.0,0.00019342,2]
[387772759,1758843039764,-480.0,0.00019342,2]
[387772762,1758843039774,-480.0,0.00019342,2]
[387772764,1758843039784,-480.0,0.00019342,2]
[387772766,1758843039794,-480.0,0.00019342,2]
[387772768,1758843039806,-480.0,0.00019342,2]
[387772770,1758843039817,-480.0,0.00019342,2]
[387772772,1758843039826,-480.0,0.00019342,2]
[387772774,1758843039835,-480.0,0.00019342,2]
[387772776,1758843039844,-480.0,0.00019342,2]
[387772777,1758843039854,-480.0,0.00019342,2]
[387772779,1758843039864,-480.0,0.00019342,2]
[387772781,1758843039874,-480.0,0.00019342,2]
[387772783,1758843039883,-480.0,0.00019342,2]
[387772786,1758843039893,-480.0,0.00019342,2]
[387772788,1758843039903,-480.0,0.00019342,2]
[387772789,1758843039915,-480.0,0.00019342,2]
[387772792,1758843039925,-490.52124139,0.00019342,2]
[387772793,1758843039934,-480.0,0.00019342,2]
[387772796,1758843039944,-480.0,0.00019342,2]
[387772798,1758843039955,-627.54956429,0.00019342,2]
[387772800,1758843039965,-628.0,0.00019342,2]
[387772802,1758843039974,-480.0,0.00019342,2]
[387772804,1758843039985,-480.0,0.00019342,2]
[387772806,1758843039994,-495.4758876,0.00019342,2]
[387772808,1758843040004,-480.0,0.00019342,2]
[387772810,1758843040013,-480.0,0.00019342,2]
[387772812,1758843040023,-430.29931593,0.00019342,2]
[387772814,1758843040032,-480.0,0.00019342,2]
[387772816,1758843040042,-480.0,0.00019342,2]
[387772818,1758843040051,-483.58928266,0.00019342,2]
[387772820,1758843040060,-480.0,0.00019342,2]
[387772822,1758843040070,-480.0,0.00019342,2]
[387772824,1758843040079,-480.0,0.00019342,2]
[387772825,1758843040088,-480.0,0.00019342,2]
[387772828,1758843040098,-1163.02,0.00019342,2]
[387772830,1758843040108,-1163.02,0.00019342,2]
[387772832,1758843040118,-1163.02,0.00019342,2]
[387772834,1758843040127,-480.0,0.00019342,2]
[387772836,1758843040136,-1163.02,0.00019342,2]
[387772837,1758843040147,-480.0,0.00019342,2]
[387772840,1758843040156,-406.17505405,0.00019342,2]
[387772842,1758843040166,-480.0,0.00019342,2]
[387772843,1758843040175,-480.0,0.00019342,2]
[387772845,1758843040184,-480.0,0.00019342,2]
[387772847,1758843040194,-480.0,0.00019342,2]
[387772850,1758843040203,-480.0,0.00019342,2]
[387772852,1758843040213,-480.0,0.00019342,2]
[387772853,1758843040223,-500.0,0.00019342,2]
[387772855,1758843040232,-500.0,0.00019342,2]
[387772857,1758843040242,-500.0,0.00019342,2]
[387772860,1758843040251,-480.0,0.00019342,2]
[387772862,1758843040261,-480.0,0.00019342,2]
[387772864,1758843040272,-480.0,0.00019342,2]
[387772865,1758843040281,-480.0,0.00019342,2]
[387772868,1758843040290,-480.0,0.00019342,2]
[387772870,1758843040300,-480.0,0.00019342,2]
[387772872,1758843040310,-480.0,0.00019342,2]
[387772874,1758843040320,-480.0,0.00019342,2]
[387772876,1758843040330,-480.0,0.00019342,2]
[387772878,1758843040340,-480.0,0.00019342,2]
[387772880,1758843040349,-480.0,0.00019342,2]
[387772882,1758843040358,-480.0,0.00019342,2]
[387772884,1758843040368,-480.0,0.00019342,2]
[387772886,1758843040377,-480.0,0.00019342,2]
[387772888,1758843040387,-480.0,0.00019342,2]
[387772890,1758843040396,-480.0,0.00019342,2]
[387772892,1758843040406,-480.0,0.00019342,2]
[387772894,1758843040415,-480.0,0.00019342,2]
[387772896,1758843040425,-480.0,0.00019342,2]
[387772898,1758843040434,-480.0,0.00019342,2]
[387772900,1758843040443,-480.0,0.00019342,2]
[387772902,1758843040453,-480.0,0.00019342,2]
[387772904,1758843040462,-211.74646961,0.00019342,2]
[387772906,1758843040471,-480.0,0.00019342,2]
[387772908,1758843040480,-480.0,0.00019342,2]
[387772910,1758843040490,-480.0,0.00019342,2]
[387772912,1758843040500,-480.0,0.00019342,2]
[387772914,1758843040509,-480.0,0.00019342,2]
[387772916,1758843040518,-480.0,0.00019342,2]
[387772918,1758843040529,-480.0,0.00019342,2]
[387772920,1758843040539,-480.0,0.00019342,2]
[387772922,1758843040548,-480.0,0.00019342,2]
[387772924,1758843040558,-480.0,0.00019342,2]
[387772926,1758843040567,-480.0,0.00019342,2]
[387772928,1758843040578,-480.0,0.00019342,2]
[387772930,1758843040587,-480.0,0.00019343,2]
[387772932,1758843040598,-480.0,0.00019343,2]
[387772934,1758843040607,-480.0,0.00019343,2]
[387772936,1758843040617,-480.0,0.00019343,2]
[387772938,1758843040628,-480.0,0.00019343,2]